Cogmind - Beta 15 @@@ ROGUE MODE // 2025.08.04 @ 01:09:11 Player: Inverisimilidude Result: Destroyed by P-60 Hacker with Shock Rifle Performance ------------- Evolutions (3) 1500 Regions Visited (6) 1200 Robots Destroyed (15) 75 Value Destroyed (477) 477 Prototype IDs (23) 460 Alien Tech Used (0) 0 Bonus (630) 630 TOTAL SCORE: 4342 Bonus ------- Pacifist 270 Follower Combat Kills 60 Aligned with FarCom 300 Cogmind --------- Core Integrity 0/700 Matter 300/300 Energy 100/100 System Corruption 2% Temperature Cool (0) Movement Core (250) Ox4 Location -7/Factory Parts ------- > --- POWER (1) -------- (None) > --- PROPULSION (6) --- (None) > --- UTILITY (4) ------ Lightpack 2.0 Modified TNC > --- WEAPON (2) ------- AWS/Thermal > --- INVENTORY (40) --- (None) Peak State ------------ > --- POWER ------------ (None) > --- PROPULSION ------- (None) > --- UTILITY ---------- Lightpack 2.0 Modified TNC > --- WEAPON ----------- AWS/Thermal > --- INVENTORY -------- (None) [Rating: 52] Favorites ----------- Power None Propulsion None Utility Modified TNC Device Improved Sensor Array Storage Lightpack 2.0 Processor Modified TNC Weapon AWS/Thermal Energy Gun AWS/Thermal Build | -11 -10 -10 -10 -9 -8 -7 ------- Run | Yrd Mat Min Exi Min Mat Fac Slots Evolved 6 | . . . . . 4 2 Power . | . . . . . . . Propulsion 4 | . . . . . 3 1 Utility 2 | . . . . . 1 1 Weapon . | . . . . . . . Parts Attached 4 | . . . 1 . 2 1 Power . | . . . . . . . Engine . | . . . . . . . Core . | . . . . . . . Reactor . | . . . . . . . Propulsion . | . . . . . . . Treads . | . . . . . . . Leg . | . . . . . . . Wheel . | . . . . . . . Hover . | . . . . . . . Flight . | . . . . . . . Utility 3 | . . . 1 . 1 1 Device 1 | . . . . . 1 . Storage 1 | . . . . . . 1 Processor 1 | . . . 1 . . . Hackware . | . . . . . . . Protection . | . . . . . . . Artifact . | . . . . . . . Weapon 1 | . . . . . 1 . Energy Gun 1 | . . . . . 1 . Energy Cannon . | . . . . . . . Ballistic Gun . | . . . . . . . Ballistic Cannon . | . . . . . . . Launcher . | . . . . . . . Special Weapon . | . . . . . . . Impact Weapon . | . . . . . . . Slashing Weapon . | . . . . . . . Piercing Weapon . | . . . . . . . Special Melee Weapon . | . . . . . . . Unidentified Prototypes . | . . . . . . . Parts Lost 1 | . . . . . . 1 Power . | . . . . . . . Propulsion . | . . . . . . . Utility 1 | . . . . . . 1 Weapon . | . . . . . . . Highest Loss Streak 1 | . . . . . . 1 To Critical Strikes . | . . . . . . . Average Backups 1 | . . . . 2 1 1 Power . | . . . . . . . Propulsion . | . . . . . . . Utility . | . . . . 1 1 . Weapon . | . . . . 1 . . Tool/Special . | . . . . . . . Unused Backups . | . . . . . . . Power . | . . . . . . . Propulsion . | . . . . . . . Utility . | . . . . . . . Weapon . | . . . . . . . Tool/Special . | . . . . . . . Average Slot Usage (%) 11 | . . . 6 14 15 16 Device 1 | . . . . . . 3 Processor 6 | . . . 6 14 9 7 Energy Gun 1 | . . . . . 6 2 Peak Build Rating 52 | . . . 10 10 25 52 Average Rating 14 | . . . 4 10 21 24 On Entrance 4 | . . . . 10 10 13 Naked Turns 246 | . 23 161 62 . . . Heaviest Build 13 | . . . . . 8 13 Greatest Support 3 | 3 3 3 3 3 3 3 Greatest Overweight (x) 4 | . . . . . 2 4 Average Overweight (x) . | . . . . . 1 . Largest Inventory Capacity 40 | 5 5 5 5 5 5 40 Average Capacity 8 | 5 5 5 5 5 5 13 Most Carried 5 | . . . 5 5 5 5 Average Carried 2 | . . . 2 5 3 3 Final Capacity 40 | 5 5 5 5 5 5 40 Final Carried 5 | . . . 5 5 5 . Class Distribution -------------------- 90% | Mutant 9% | Hauler-Mutant Dominant Class ---------------- Mutant | -10/Materials Mutant | -10/Mines Mutant | -10/Exiles Mutant | -9/Mines Mutant | -8/Materials Mutant | -7/Factory Resources | -11 -10 -10 -10 -9 -8 -7 ----------- Run | Yrd Mat Min Exi Min Mat Fac Matter Collected 260 | 197 . 3 . 10 . 50 Remotely . | . . . . . . . Salvage Created 521 | . . . . . 171 350 Parts 25 | . . . . . 10 15 Haulers Intercepted . | . . . . . . . Recyclers Shooed . | . . . . . . . Parts Field Recycled . | . . . . . . . Retrieved Matter . | . . . . . . . Parts Self-Destructed . | . . . . . . . Prevented . | . . . . . . . Kills | -11 -10 -10 -10 -9 -8 -7 ------- Run | Yrd Mat Min Exi Min Mat Fac Combat Hostiles Destroyed 14 | . . . . . 5 9 Guns 14 | . . . . . 5 9 Classes Destroyed 5 | . . . . . 3 2 Watcher 1 | . . . . . 1 . Swarmer 9 | . . . . . 3 6 Grunt 2 | . . . . . 2 . Sentry 2 | . . . . . . 2 Hunter 1 | . . . . . . 1 Best Kill Streak 7 | . . . . . 3 7 Combat Bots Only 7 | . . . . . 3 7 Max Kills in Single Turn 1 | . . . . . 1 1 Gunslinging . | . . . . . . . Exploded . | . . . . . . . Melee . | . . . . . . . Uniques/NPCs Destroyed . | . . . . . . . Combat | -11 -10 -10 -10 -9 -8 -7 -------- Run | Yrd Mat Min Exi Min Mat Fac Hostile Shots Fired 195 | . . 20 . 5 37 133 Missed 82 | . . 7 . 1 16 58 Hits 113 | . . 13 . 4 21 75 Projectile 113 | . . 13 . 4 21 75 Critical Strikes 1 | . . . . . . 1 Damage Taken 1512 | . . 181 . 47 298 986 Core 1192 | . . 181 . 47 254 710 Absorbed by Shields . | . . . . . . . Core Remaining (%) 53 | 100 . . . 8 53 . Volleys Fired . | . . . . . . . Largest . | . . . . . . . Hottest . | . . . . . . . Shots Fired 73 | . . . . . 33 40 Gun 73 | . . . . . 33 40 Cannon . | . . . . . . . Launcher . | . . . . . . . Special . | . . . . . . . Kinetic . | . . . . . . . Thermal 73 | . . . . . 33 40 Explosive . | . . . . . . . Electromagnetic . | . . . . . . . Robot Hit Streak 19 | . . . . . 9 19 Robot Miss Streak 3 | . . . . . 3 2 Penetration Max . | . . . . . . . Secondary Targets . | . . . . . . . Autonomous 73 | . . . . . 33 40 Shots Hit Robots 55 | . . . . . 24 31 Core Hits 20 | . . . . . 8 12 Critical Kills . | . . . . . . . Critical Parts Destroyed . | . . . . . . . Critical Strikes . | . . . . . . . Melee Attacks . | . . . . . . . Impact . | . . . . . . . Slashing . | . . . . . . . Piercing . | . . . . . . . Sneak Attacks . | . . . . . . . Combat Hostiles . | . . . . . . . Follow-up Attacks . | . . . . . . . Damage Inflicted 1623 | . . 12 . . 673 938 Guns 1611 | . . . . . 673 938 Cannons . | . . . . . . . Explosions . | . . . . . . . Melee . | . . . . . . . Ramming 12 | . . 12 . . . . Kinetic . | . . . . . . . Thermal 1611 | . . . . . 673 938 Explosive . | . . . . . . . Electromagnetic . | . . . . . . . Impact . | . . . . . . . Slashing . | . . . . . . . Piercing . | . . . . . . . Highest Corruption 1 | . . . . . . 1 Average Corruption 1 | . . . . . . 1 Corruption Purged . | . . . . . . . Corruption Blocked . | . . . . . . . Effects 1 | . . . . . . 1 Matter Fused 1 | . . . . . . 1 Overload Shots . | . . . . . . . Overflow Damage . | . . . . . . . Projectiles . | . . . . . . . Explosions . | . . . . . . . Melee . | . . . . . . . Knockbacks . | . . . . . . . Impact . | . . . . . . . Kinetic . | . . . . . . . Secondary . | . . . . . . . Self-Inflicted Damage 6 | . . 6 . . . . Shots . | . . . . . . . Rammed 2 | . . 2 . . . . Targets Rammed 2 | . . 2 . . . . Kicked . | . . . . . . . Crushed . | . . . . . . . Highest Temperature . | . . . . . . . Average Temperature . | . . . . . . . Received Heat Transfer 312 | . . 99 . 24 153 36 Siege Activations . | . . . . . . . Martial Activations . | . . . . . . . Shielding Activations . | . . . . . . . Robots Disrupted . | . . . . . . . Combat Hostiles . | . . . . . . . Robots Corrupted . | . . . . . . . Combat Hostiles . | . . . . . . . Parts Fried . | . . . . . . . Impact Corruptions . | . . . . . . . Robots Melted . | . . . . . . . Combat Hostiles . | . . . . . . . Parts Melted 1 | . . . . . . 1 Heat Transferred 1998 | . . . . . 851 1147 Parts Sabotaged . | . . . . . . . Parts Stolen . | . . . . . . . Parts Stripped . | . . . . . . . Power Chain Reactions . | . . . . . . . Alert | -11 -10 -10 -10 -9 -8 -7 ------- Run | Yrd Mat Min Exi Min Mat Fac Maximum Alert Level . | . . . . . . . Low Security (%) 100 | 100 100 100 . 100 100 100 Level 1 . | . . . . . . . Level 2 . | . . . . . . . Level 3 . | . . . . . . . Level 4 . | . . . . . . . Level 5 . | . . . . . . . High Security . | . . . . . . . Max Security . | . . . . . . . Peak Influence 194 | . 8 93 . 30 106 194 Initial 43 | . . . . . . 43 Average 56 | . 5 56 . 6 56 77 Influence Increases 621 | . 8 153 . 30 136 294 Destroy 0b10 Robot/C 360 | . . 80 . . 100 180 Destroy 0b10 Robot/NC 5 | . . . . . 5 . Destroy Leader 92 | . . 20 . . 22 50 Allied During Kill 8 | . . 8 . . . . Successful Hack 22 | . 8 . . . . 14 Destroy Structure 14 | . . . . . 9 5 Lose Combat Pursuer 120 | . . 45 . 30 . 45 Influence Decreases 450 | . 8 80 73 30 40 219 Entered New Map 126 | . . . 73 . . 53 Time Decay 324 | . 8 80 . 30 40 166 Squads Dispatched 7 | . . . . . 1 6 Investigation 2 | . . . . . . 2 Extermination 2 | . . . . . . 2 Reinforcement 3 | . . . . . 1 2 Assault . | . . . . . . . Garrison . | . . . . . . . Intercept . | . . . . . . . Searches Triggered . | . . . . . . . Construction Impeded . | . . . . . . . Haulers Reinforced . | . . . . . . . Active Scanning Responses . | . . . . . . . Cargo Convoy Interrupts . | . . . . . . . Stealth | -11 -10 -10 -10 -9 -8 -7 --------- Run | Yrd Mat Min Exi Min Mat Fac Distress Signals 2 | . . . . . . 2 Communications Jammed . | . . . . . . . Distress Signals . | . . . . . . . Times Spotted 46 | . . 9 . 5 12 20 Peak Tracking Total 8 | . . 4 . 3 7 8 Tactical Retreats 5 | . . 2 . 1 . 2 Traps | -11 -10 -10 -10 -9 -8 -7 ------- Run | Yrd Mat Min Exi Min Mat Fac Traps Triggered . | . . . . . . . Indirectly . | . . . . . . . Trap Hack Attempts . | . . . . . . . Triggered . | . . . . . . . Disarmed . | . . . . . . . Reprogrammed . | . . . . . . . Reused . | . . . . . . . Traps Extracted . | . . . . . . . Installed . | . . . . . . . Triggered . | . . . . . . . Machines | -11 -10 -10 -10 -9 -8 -7 ---------- Run | Yrd Mat Min Exi Min Mat Fac Machines Disabled . | . . . . . . . Max in Single Turn . | . . . . . . . Machines Repaired . | . . . . . . . Machines Dismantled . | . . . . . . . Machines Sabotaged . | . . . . . . . Overloaded Fab Kills . | . . . . . . . Hacking | -11 -10 -10 -10 -9 -8 -7 --------- Run | Yrd Mat Min Exi Min Mat Fac Machines Accessed 4 | . 1 . 1 . . 2 Terminals 1 | . 1 . . . . . Fabricators 1 | . . . . . . 1 Repair Stations . | . . . . . . . Recycling Units . | . . . . . . . Scanalyzers . | . . . . . . . Garrison Access 1 | . . . . . . 1 Total Hacks 10 | . 2 . 1 . . 7 Successful 3 | . 1 . 1 . . 1 Failed 7 | . 1 . . . . 6 Catastrophic 1 | . . . . . . 1 Database Lockouts . | . . . . . . . Manual 3 | . 2 . 1 . . . Terminals 2 | . 2 . . . . . Fabricators 4 | . . . . . . 4 Repair Stations . | . . . . . . . Recycling Units . | . . . . . . . Scanalyzers . | . . . . . . . Garrison Access 3 | . . . . . . 3 Terminal Hacks 2 | . 1 . 1 . . . Branch Access Points 1 | . 1 . . . . . Proto ID Catalog 1 | . . . 1 . . . Fabricator Hacks . | . . . . . . . Repair Station Hacks . | . . . . . . . Recycling Unit Hacks . | . . . . . . . Scanalyzer . | . . . . . . . Garrison Access Hacks 1 | . . . . . . 1 Unlock Access 1 | . . . . . . 1 Unauthorized Hacks . | . . . . . . . Terminals . | . . . . . . . Fabricators . | . . . . . . . Repair Stations . | . . . . . . . Recycling Units . | . . . . . . . Scanalyzers . | . . . . . . . Garrison Access . | . . . . . . . Data Cores Recovered . | . . . . . . . Used . | . . . . . . . Hacking Detections 3 | . 1 . . . . 2 Full Trace Events 2 | . . . . . . 2 Feedback Events . | . . . . . . . Feedback Blocked . | . . . . . . . Robot Schematics Acquired . | . . . . . . . Robots Built . | . . . . . . . Authchips . | . . . . . . . Time . | . . . . . . . Total Robot Build Rating . | . . . . . . . Part Schematics Acquired . | . . . . . . . Parts Built . | . . . . . . . Authchips . | . . . . . . . Time . | . . . . . . . Total Part Build Rating . | . . . . . . . Parts Repaired . | . . . . . . . Time . | . . . . . . . Parts Recycled . | . . . . . . . Recycled Matter . | . . . . . . . Retrieved Matter . | . . . . . . . Retrieved Components . | . . . . . . . Parts Scanalyzed . | . . . . . . . Part Schematics Acquired . | . . . . . . . Parts Damaged . | . . . . . . . Bothacking | -11 -10 -10 -10 -9 -8 -7 ------------ Run | Yrd Mat Min Exi Min Mat Fac Used RIF Installer . | . . . . . . . Robots Hacked . | . . . . . . . Non-combat . | . . . . . . . Combat . | . . . . . . . Robot Hacks Applied . | . . . . . . . Relay Couplers Released . | . . . . . . . Fabnet Peak Effective % . | . . . . . . . Robots Rewired . | . . . . . . . Allies Hacked . | . . . . . . . Hacks Repelled . | . . . . . . . Allies | -11 -10 -10 -10 -9 -8 -7 -------- Run | Yrd Mat Min Exi Min Mat Fac Total Allies 3 | . . 3 . . . . Largest Group 3 | . . 3 . . . . Highest-Rated Group 40 | . . 40 . . . . Highest-Rated Ally 16 | . . 16 . . . . Total Orders . | . . . . . . . Ally Attacks 28 | . . 28 . . . . Total Damage 255 | . . 255 . . . . Kills 5 | . . 5 . . . . Allies Corrupted . | . . . . . . . Allies Melted . | . . . . . . . Intel | -11 -10 -10 -10 -9 -8 -7 ------- Run | Yrd Mat Min Exi Min Mat Fac Active Infowar (turns) 730 | . . . 55 148 85 442 Sensors 236 | . . . . . 3 233 T.N.C. 730 | . . . 55 148 85 442 Robot Analysis Total . | . . . . . . . Derelict Logs Recovered 1 | . . 1 . . . . Drone Launches . | . . . . . . . Drone Recoveries . | . . . . . . . Exploration | -11 -10 -10 -10 -9 -8 -7 ------------- Run | Yrd Mat Min Exi Min Mat Fac Turns Passed 987 | 11 23 161 117 148 85 442 Spaces Moved 1502 | 21 46 296 226 229 77 607 Core 1502 | 21 46 296 226 229 77 607 Treads . | . . . . . . . Legs . | . . . . . . . Wheels . | . . . . . . . Hover . | . . . . . . . Flight . | . . . . . . . Fastest Speed 50 | 50 50 50 50 50 50 50 Average Speed 61 | 50 50 50 50 50 101 72 Slowest Speed 250 | 50 50 50 50 50 150 250 Overloaded Moves . | . . . . . . . Propulsion Burnouts . | . . . . . . . Robots Hopped . | . . . . . . . Potential Cave-ins . | . . . . . . . Cave-ins Triggered . | . . . . . . . Exploration Rate (%) 31 | 3 13 52 60 60 11 22 Regions Visited 6 Branch Regions 3 Pre-discovered Areas 1 | . . . . 1 . . Known Exits Taken 1 | . 1 . . . . . Unknown Exits Taken 5 | 1 . 1 1 1 1 . Scrap Searched 1 | . . . . 1 . . Spaces Dug . | . . . . . . . Terrain Destroyed 14 | . . . . . 9 5 Melee . | . . . . . . . Projectile 14 | . . . . . 9 5 AOE . | . . . . . . . Terrain Rammed . | . . . . . . . Walls Destroyed . | . . . . . . . Machines Disabled . | . . . . . . . Actions | -11 -10 -10 -10 -9 -8 -7 --------- Run | Yrd Mat Min Exi Min Mat Fac Total 1556 | 20 45 308 228 261 82 612 Wait 48 | . . 11 . 33 3 1 Move 1496 | 20 45 295 225 228 76 607 Hop . | . . . . . . . Pick Up 2 | . . . 2 . . . Fast Attach 2 | . . . 1 . 1 . Attach 4 | . . . . . 1 3 Detach 2 | . . . . . 1 1 Swap . | . . . . . . . Drop . | . . . . . . . Fire . | . . . . . . . Melee . | . . . . . . . Ram 2 | . . 2 . . . . Kick . | . . . . . . . Crush . | . . . . . . . Escape Stasis . | . . . . . . . Rewire . | . . . . . . . Trap . | . . . . . . . Miscellaneous . | . . . . . . . Route ------- -11/Scrapyard -10/Materials -10/Mines (discovered 3 exits: *Mat x2 / *Exi) -10/Exiles -9/Mines -8/Materials -7/Factory (discovered 1 exit: Gar) History --------- Turn | Location | Event 3 | -11/Scrapyard | Discovered new exit (range 15) 12 | -11/Scrapyard | Entered Materials 16 | -10/Materials | Identified exit to Mines 35 | -10/Materials | Entered Mines 37 | -10/Mines | Assisted by bots powering up and referring to "LRC-V3" 122 | -10/Mines | Identified exit to Materials 124 | -10/Mines | Discovered exit to Materials (range 5) 181 | -10/Mines | Core integrity fell below 50% 192 | -10/Mines | Deemed a non-threat by the Exiles lab entrance 192 | -10/Mines | Discovered new exit (range 5) 196 | -10/Mines | Entered Exiles 210 | -10/Exiles | Met 8R-AWN 219 | -10/Exiles | Met EX-HEX 236 | -10/Exiles | Met EX-BIN 242 | -10/Exiles | Aligned with FarCom system 243 | -10/Exiles | Given EX-Vault access code 255 | -10/Exiles | Opened EX-Vault 258 | -10/Exiles | Found Modified TNC 261 | -10/Exiles | Found AWS/Thermal 263 | -10/Exiles | Found Lightpack 2.0 273 | -10/Exiles | Warned to stay clear of 0b10 Research branches 290 | -10/Exiles | Met EX-DEC 307 | -10/Exiles | Discovered new exit (range 14) 313 | -10/Exiles | Stole three prototypes: Modified TNC, Lightpack 2.0, AWS/Thermal 313 | -10/Exiles | Entered Mines 314 | -9/Mines | Learned location of Storage (-9) 317 | -9/Mines | Build established: Mutant 341 | -9/Mines | Found a hidden stash of uninstalled traps 343 | -9/Mines | Met a Derelict bent on vengeance 435 | -9/Mines | Core integrity fell below 20% 455 | -9/Mines | Discovered new exit (range 10) 461 | -9/Mines | Entered Materials 461 | -8/Materials | Evolved 4 slots: Propulsion x3, Utility x1 533 | -8/Materials | Discovered new exit (range 12) 546 | -8/Materials | Entered Factory 546 | -7/Factory | Evolved 2 slots: Propulsion x1, Utility x1 548 | -7/Factory | FarCom data flow suspended 741 | -7/Factory | Identified exit to Garrison 782 | -7/Factory | Core integrity fell below 50% 807 | -7/Factory | Core integrity fell below 20% 845 | -7/Factory | Destroyed 7 combat bots 988 | -7/Factory | Destroyed by P-60 Hacker with Shock Rifle Last Messages --------------- 00816_ R-06 Scavenger collects VTOL Module. 00824_ Y-54 Guardian destroyed. 00839_ Acquired 35 matter. 00874_ Penetrated by Slug. 00876_ H-55 Commando destroyed. 00910_ ALERT: Potential suspicious activity detected, Programmers report to Factory Zone 8Q. 00960_ O-24 Administrator sends out distress signal. 00960_ O-24 Administrator: "IFF HANDSHAKE FAILED. SECURING TERMINAL." 00967_ Destroyed Imp. Heat Sink. 00967_ ALERT: Hostiles spotted, dispatching reinforcements to Terminal F006. 00969_ Y-54 Guardian destroyed. 00979_ System corrupted: Matter fused (-5). 00983_ Destroyed Shock Rifle. 00987_ Acquired 15 matter. 00988_ Destroyed Remote Datajack. Map ----- +----------------------------------------------------+ | #+###?# # ????????????? | | ### # ????????????? | | ##+##########???? | | " #???? | | !%[ ###### #### #???? | | ### ########+###????# #??# #???? | | # ###?# #???????????????# #??# #???? | | # #???# #???????????????# #??# #???? | | # #???# #???????????????# #??# #???? | | # #???# #???????????????# ####+##### | | # #???# ???????????????# # # | | # #???# #???????????????# # # | | # #???? ?????????????#### # # | | # #???? ?????????????+ p # # | | # ##??? ???????????????# # ! # | | [ #??? ???????????????# # # | | %=#??? ???????????????# + # | | = #??? ?????????" ????; #+####### | | #+##??? ?????????" ""??# # ????? | | ?????????????" """ """ # # ??? | | ????????????"" + # #? | | ?????????# = % # # #? | | ????????????#########?## ########? | | ??????????????????????# #??????? | | ?????????????????###### [ #??????? | | ?????????? @! #??????? | | ????????????????####### #??????? | | ??????????????????????# #??????? | | ??????????????????????### ###??????? | | ????????????????????????# #????????? | | ????????????????????????# #????????? | | ????????????????????????# #????????? | | ????????????????????????# #????????? | | ????????????????????????o ????????? | | ????????????????????????#+#????????? | | ????????????????????????? ?????????? | | ????????????????????????? ?????????? | | ????????????????????????? ?????????? | | ????????????????????????? ?????????? | | ????????????????????????? ?????????? | | ?????????????????????????#?????????? | | ???????????????????????????????????? | | ???????????????????????????????????? | | ???????????????????????????????????? | | ???????????????????????????????????? | | ???????????????????????????????????? | | ???????????????????????????????????? | | ???????????????????????????????????? | | ???????????????????????????????????? | | ???????????????????????????????????? | +----------------------------------------------------+ Best States ------------- Heat Dissipation 34 Energy Generation 5 Energy Capacity 100 Matter Stores 300 Matter Capacity 300 Sight Range 16 Robot Scan Range 15 Terrain Scan Density 10 Evasion (%) 50 Item Schematics ----------------- None Robot Schematics ------------------ None Fabricated ------------ Nothing Repaired ---------- Nothing Alien Tech Used ----------------- None Achievements -------------- None Challenges ------------ None Game ------ Seed PiercingShieldCanceller Manual? 0 Play Time 00:11:02 Cumulative 95.1 hours Start 2025.08.04 @ 00:58:44 End 2025.08.04 @ 01:09:11 Sessions 1 Manual Loads 0 Difficulty Rogue Special Mode None Game No. 115 Rogue 115 Adventurer 0 Explorer 0 Win Type - Total 0 Types 0/0/0/0/0/0/0/0/0/0 Lore% 58 Gallery% 44 Achievement% 42 Wizard Run 0 Options --------- Layout 1 ASCII 0 Keyboard 0 Movement Arrows Keybinds 0 Fullscreen 1 Font 24/Smallcaps Map View 50x35 Zoom Use 0% Tactical HUD 1 Map Filters NONE Filters NONE Steam 1 RUN: 81b47da5-8219-4750-bb80-8fe6d11964e1